Cogmind - Beta 10.1 @@@ ROGUE MODE // 2020.10.06 @ 16:19:50 Player: BOTHUNTER Result: Destroyed by S-10 Pest with Light Assault Rifle Performance ------------- Evolutions (1) 500 Regions Visited (6) 1200 Robots Destroyed (24) 120 Value Destroyed (512) 512 Prototype IDs (3) 60 Alien Tech Used (0) 0 Bonus (235) 235 TOTAL SCORE: 2627 Bonus ------- Follower Combat Kills 55 Aligned with FarCom 300 Friendly Fire -120 Cogmind --------- Core Integrity 0/400 Matter 122/300 Energy 94/100 System Corruption 0% Temperature Cool (0) Movement Core (50) Location -8/Mines Parts ------- > --- POWER (1) -------- (None) > --- PROPULSION (2) --- (None) > --- UTILITY (4) ------ Improved Signal Interpreter Propulsion Shielding > --- WEAPON (2) ------- (None) > --- INVENTORY (4) ---- Flying Fortress v7 Peak State ------------ > --- POWER ------------ (None) > --- PROPULSION ------- (None) > --- UTILITY ---------- Visual Processing Unit Improved Signal Interpreter Targeting Computer > --- WEAPON ----------- YOLO Cannon > --- INVENTORY -------- Propulsion Shielding Light Armor Plating Signal Generator [Rating: 25] Favorites ----------- Power Light Ion Engine Engine Light Ion Engine Propulsion Flight Unit Flight Unit Flight Unit Utility Improved Signal Interpreter Storage Large Storage Unit Processor Improved Signal Interpreter Protection Propulsion Shielding Weapon Rocket Launcher Energy Gun Improved EM Shotgun Energy Cannon Light EM Pulse Cannon Ballistic Gun Assault Rifle Launcher Rocket Launcher Special Weapon Field Lobotomy Kit Impact Weapon Flail Build | -11 -10 -10 -9 -9 -9 -8 ------- Run | Scr Mat Min Mat Min Exi Min Slots Evolved 2 | . . . 2 . . . Power . | . . . . . . . Propulsion . | . . . . . . . Utility 2 | . . . 2 . . . Weapon . | . . . . . . . Parts Attached 25 | 1 7 . 4 1 6 6 Power 1 | . . . . . . 1 Engine 1 | . . . . . . 1 Core . | . . . . . . . Reactor . | . . . . . . . Propulsion 2 | . . . . . . 2 Treads . | . . . . . . . Leg . | . . . . . . . Wheel . | . . . . . . . Hover . | . . . . . . . Flight 2 | . . . . . . 2 Utility 9 | . 3 . 3 . 3 . Device . | . . . . . . . Storage 1 | . . . . . 1 . Processor 5 | . 2 . 3 . . . Hackware . | . . . . . . . Protection 3 | . 1 . . . 2 . Artifact . | . . . . . . . Weapon 13 | 1 4 . 1 1 3 3 Energy Gun 4 | 1 1 . 1 . . 1 Energy Cannon 2 | . . . . . 1 1 Ballistic Gun 1 | . 1 . . . . . Ballistic Cannon . | . . . . . . . Launcher 4 | . 2 . . 1 1 . Special Weapon 1 | . . . . . 1 . Impact Weapon 1 | . . . . . . 1 Slashing Weapon . | . . . . . . . Piercing Weapon . | . . . . . . . Special Melee Weapon . | . . . . . . . Unidentified Prototypes 3 | . . . 1 . 2 . Parts Lost 9 | . 1 . . . . 8 Power 1 | . . . . . . 1 Propulsion 2 | . . . . . . 2 Utility 1 | . . . . . . 1 Weapon 5 | . 1 . . . . 4 Highest Loss Streak 4 | . 1 . . . . 4 Average Slot Usage (%) 50 | . 24 42 42 52 50 60 Engine 2 | . . . . . . 7 Storage 6 | . . . . . 7 10 Processor 15 | . 9 14 30 33 16 11 Protection 13 | . . . . . 17 19 Energy Gun 3 | . 5 14 11 11 2 . Ballistic Gun 1 | . 6 14 . . . . Launcher 6 | . 2 . . 8 6 9 Naked Turns 32 | . 32 . . . . . Heaviest Build 27 | 2 5 3 3 7 24 27 Greatest Support 8 | 3 3 3 3 3 3 8 Greatest Overweight (x) 8 | . 1 . . 2 7 8 Average Overweight (x) 2 | . . . . 1 3 7 Largest Inventory Capacity 10 | 4 4 4 4 4 10 10 Average Capacity 7 | 4 4 4 4 4 8 9 Most Carried 9 | . 4 4 4 4 6 9 Average Carried 5 | . 1 4 4 3 4 7 Final Capacity 10 | 4 4 4 4 4 10 4 Final Carried 6 | . 4 4 4 3 6 4 Class Distribution -------------------- 100% | Mutant Dominant Class ---------------- Mutant | -10/Materials Mutant | -10/Mines Mutant | -9/Materials Mutant | -9/Mines Mutant | -9/Exiles Mutant | -8/Mines Resources | -11 -10 -10 -9 -9 -9 -8 ----------- Run | Scr Mat Min Mat Min Exi Min Matter Collected 521 | 177 124 . 53 . . 167 Remotely . | . . . . . . . Salvage Created 559 | . 237 . 124 . . 198 Parts 45 | . 16 . 12 . . 17 Haulers Intercepted 1 | . 1 . . . . . Recyclers Shooed 1 | . . . . . . 1 Parts Field Recycled . | . . . . . . . Retrieved Matter . | . . . . . . . Parts Self-Destructed . | . . . . . . . Prevented . | . . . . . . . Kills | -11 -10 -10 -9 -9 -9 -8 ------- Run | Scr Mat Min Mat Min Exi Min Combat Hostiles Destroyed 13 | . 2 . 1 . . 10 Guns 1 | . . . 1 . . . AOE 11 | . 2 . . . . 9 Classes Destroyed 12 | . 6 . 3 . . 3 Worker 1 | . . . . . . 1 Builder 2 | . 1 . . . . 1 Tunneler 1 | . 1 . . . . . Hauler 1 | . 1 . . . . . Recycler 1 | . 1 . . . . . Mechanic 1 | . . . 1 . . . Operator 1 | . . . 1 . . . Watcher 2 | . 1 . 1 . . . Swarmer 6 | . . . . . . 6 Grunt 5 | . 2 . . . . 3 Sentry 1 | . . . 1 . . . Hunter 1 | . . . . . . 1 Thug 1 | . . . . . . 1 Best Kill Streak 6 | . 5 . 2 . . 6 Combat Bots Only 5 | . 2 . 1 . . 5 Max Kills in Single Turn 3 | . 3 . 1 . . 2 Gunslinging . | . . . . . . . Exploded 2 | . 2 . . . . 2 Melee . | . . . . . . . Uniques/NPCs Destroyed . | . . . . . . . Combat | -11 -10 -10 -9 -9 -9 -8 -------- Run | Scr Mat Min Mat Min Exi Min Damage Taken 1029 | . 87 . 101 . . 841 Core 430 | . 25 . 32 . . 373 Absorbed by Shields . | . . . . . . . Core Remaining (%) 95 | 100 . 90 . . . . Volleys Fired 50 | . 10 . 11 . . 29 Largest 2 | . 2 . 1 . . 1 Hottest 70 | . 70 . 45 . . 56 Shots Fired 53 | . 13 . 11 . . 29 Gun 22 | . 10 . 11 . . 1 Cannon 4 | . . . . . . 4 Launcher 27 | . 3 . . . . 24 Special . | . . . . . . . Kinetic 3 | . 2 . 1 . . . Thermal . | . . . . . . . Explosive 27 | . 3 . . . . 24 Electromagnetic 23 | . 8 . 10 . . 5 Robot Hit Streak 13 | . 3 . 12 . . 13 Robot Miss Streak 4 | . 2 . 1 . . 4 Penetration Max . | . . . . . . . Secondary Targets . | . . . . . . . Shots Hit Robots 31 | . 9 . 11 . . 11 Core Hits 36 | . 11 . 7 . . 18 Critical Hits . | . . . . . . . Critical Kills . | . . . . . . . Critical Parts Destroyed . | . . . . . . . Melee Attacks 1 | . . . . . . 1 Impact 1 | . . . . . . 1 Slashing . | . . . . . . . Piercing . | . . . . . . . Sneak Attacks . | . . . . . . . Combat Hostiles . | . . . . . . . Follow-up Attacks . | . . . . . . . Damage Inflicted 1664 | . 423 . 217 . . 1024 Guns 357 | . 131 . 217 . . 9 Cannons 47 | . . . . . . 47 Explosions 1244 | . 292 . . . . 952 Melee 15 | . . . . . . 15 Ramming 1 | . . . . . . 1 Kinetic 39 | . 26 . 13 . . . Thermal 81 | . 46 . . . . 35 Explosive 1163 | . 246 . . . . 917 Electromagnetic 365 | . 105 . 204 . . 56 Impact 15 | . . . . . . 15 Slashing . | . . . . . . . Piercing . | . . . . . . . Highest Corruption . | . . . . . . . Average Corruption . | . . . . . . . Corruption Purged . | . . . . . . . Overload Shots . | . . . . . . . Overflow Damage 56 | . 6 . . . . 50 Projectiles . | . . . . . . . Explosions 52 | . 6 . . . . 46 Melee 4 | . . . . . . 4 Knockbacks . | . . . . . . . Impact . | . . . . . . . Kinetic . | . . . . . . . Secondary . | . . . . . . . Self-Inflicted Damage 121 | . 35 . . . . 86 Shots 4 | . 1 . . . . 3 Rammed 2 | . . . . . . 2 Targets Rammed 2 | . . . . . . 2 Kicked . | . . . . . . . Crushed . | . . . . . . . Highest Temperature 45 | . 45 . 25 . . 5 Average Temperature 14 | . 22 . 14 . . 2 Received Heat Transfer 99 | . 30 . 42 . . 27 Siege Activations . | . . . . . . . Robots Corrupted 1 | . . . . . . 1 Combat Hostiles 1 | . . . . . . 1 Parts Fried 2 | . 1 . . . . 1 Impact Corruptions 1 | . . . . . . 1 Robots Melted . | . . . . . . . Combat Hostiles . | . . . . . . . Parts Melted . | . . . . . . . Heat Transferred 100 | . 50 . . . . 50 Parts Sabotaged . | . . . . . . . Parts Stolen . | . . . . . . . Parts Stripped . | . . . . . . . Power Chain Reactions 1 | . 1 . . . . . Missiles Intercepted . | . . . . . . . Alert | -11 -10 -10 -9 -9 -9 -8 ------- Run | Scr Mat Min Mat Min Exi Min Peak Influence 247 | . 146 56 110 42 . 247 Initial 56 | . . 56 13 42 . . Average 93 | . 83 50 65 42 . 118 Maximum Alert Level 1 | . . . . . . 1 Low Security (%) 81 | 100 100 100 100 100 . 67 Level 1 18 | . . . . . . 32 Level 2 . | . . . . . . . Level 3 . | . . . . . . . Level 4 . | . . . . . . . Level 5 . | . . . . . . . High Security . | . . . . . . . Max Security . | . . . . . . . Squads Dispatched 4 | . 1 . 2 1 . . Investigation 2 | . 1 . 1 . . . Extermination . | . . . . . . . Reinforcement 1 | . . . 1 . . . Assault 1 | . . . . 1 . . Garrison . | . . . . . . . Intercept . | . . . . . . . Construction Impeded . | . . . . . . . Haulers Reinforced . | . . . . . . . Stealth | -11 -10 -10 -9 -9 -9 -8 --------- Run | Scr Mat Min Mat Min Exi Min Distress Signals 2 | . . . 1 . . 1 Communications Jammed . | . . . . . . . Distress Signals . | . . . . . . . Times Spotted 28 | . 4 1 11 . . 12 Peak Tracking Total 6 | . 2 1 6 . . 4 Tactical Retreats 2 | . . 1 1 . . . Traps | -11 -10 -10 -9 -9 -9 -8 ------- Run | Scr Mat Min Mat Min Exi Min Traps Triggered 1 | . 1 . . . . . Indirectly . | . . . . . . . Trap Hack Attempts . | . . . . . . . Triggered . | . . . . . . . Disarmed . | . . . . . . . Reprogrammed . | . . . . . . . Reused . | . . . . . . . Traps Extracted . | . . . . . . . Installed . | . . . . . . . Triggered . | . . . . . . . Machines | -11 -10 -10 -9 -9 -9 -8 ---------- Run | Scr Mat Min Mat Min Exi Min Machines Disabled 4 | . 1 . 1 . . 2 Max in Single Turn 2 | . 1 . 1 . . 2 Machines Sabotaged . | . . . . . . . Garrisons Compromised . | . . . . . . . Overloaded Fab Kills . | . . . . . . . Fab Network Shutdowns . | . . . . . . . Hacking | -11 -10 -10 -9 -9 -9 -8 --------- Run | Scr Mat Min Mat Min Exi Min Machines Accessed 9 | . 5 1 3 . . . Terminals 8 | . 4 1 3 . . . Fabricators . | . . . . . . . Repair Stations . | . . . . . . . Recycling Units 1 | . 1 . . . . . Scanalyzers . | . . . . . . . Garrison Access . | . . . . . . . Total Hacks 28 | . 16 3 9 . . . Successful 19 | . 12 1 6 . . . Failed 9 | . 4 2 3 . . . Catastrophic . | . . . . . . . Database Lockouts . | . . . . . . . Manual 29 | . 12 5 11 . 1 . Terminals 26 | . 14 3 9 . . . Fabricators . | . . . . . . . Repair Stations . | . . . . . . . Recycling Units 2 | . 2 . . . . . Scanalyzers . | . . . . . . . Garrison Access . | . . . . . . . Terminal Hacks 10 | . 7 1 2 . . . Part Schematic 4 | . 3 . 1 . . . Robot Analysis 6 | . 4 1 1 . . . Fabricator Hacks . | . . . . . . . Repair Station Hacks . | . . . . . . . Recycling Unit Hacks 1 | . 1 . . . . . Retrieve Components 1 | . 1 . . . . . Scanalyzer . | . . . . . . . Garrison Access Hacks . | . . . . . . . Unauthorized Hacks 8 | . 4 . 4 . . . Terminals 8 | . 4 . 4 . . . Track 4 | . 2 . 2 . . . Botnet 4 | . 2 . 2 . . . Fabricators . | . . . . . . . Repair Stations . | . . . . . . . Recycling Units . | . . . . . . . Scanalyzers . | . . . . . . . Garrison Access . | . . . . . . . Data Cores Recovered . | . . . . . . . Used . | . . . . . . . Hacking Detections 8 | . 4 1 3 . . . Full Trace Events 5 | . 2 1 2 . . . Feedback Events . | . . . . . . . Feedback Blocked . | . . . . . . . Robot Schematics Acquired . | . . . . . . . Robots Built . | . . . . . . . Matter . | . . . . . . . Time . | . . . . . . . Total Robot Build Rating . | . . . . . . . Part Schematics Acquired 3 | . 2 . 1 . . . Parts Built . | . . . . . . . Matter . | . . . . . . . Time . | . . . . . . . Total Part Build Rating . | . . . . . . . Parts Repaired . | . . . . . . . Time . | . . . . . . . Parts Recycled . | . . . . . . . Recycled Matter . | . . . . . . . Retrieved Matter . | . . . . . . . Retrieved Components 2 | . 2 . . . . . Parts Scanalyzed . | . . . . . . . Part Schematics Acquired . | . . . . . . . Parts Damaged . | . . . . . . . Bothacking | -11 -10 -10 -9 -9 -9 -8 ------------ Run | Scr Mat Min Mat Min Exi Min Used RIF Installer . | . . . . . . . Robots Hacked . | . . . . . . . Non-combat . | . . . . . . . Combat . | . . . . . . . Robot Hacks Applied . | . . . . . . . Relay Couplers Released . | . . . . . . . Robots Rewired . | . . . . . . . Allies Hacked . | . . . . . . . Hacks Repelled . | . . . . . . . Allies | -11 -10 -10 -9 -9 -9 -8 -------- Run | Scr Mat Min Mat Min Exi Min Total Allies 2 | . . 1 . 1 . . Largest Group 1 | . . 1 . 1 1 1 Highest-Rated Group 31 | . . 31 . 31 31 31 Highest-Rated Ally 31 | . . 31 . 31 31 31 Total Orders . | . . . . . . . Ally Attacks 18 | . . 5 . . . 13 Total Damage 272 | . . 83 . . . 189 Kills 5 | . . 2 . . . 3 Allies Corrupted . | . . . . . . . Allies Melted . | . . . . . . . Intel | -11 -10 -10 -9 -9 -9 -8 ------- Run | Scr Mat Min Mat Min Exi Min Robot Analysis Total 6 | . 4 1 1 . . . Derelict Logs Recovered . | . . . . . . . Drone Launches . | . . . . . . . Drone Recoveries . | . . . . . . . Exploration | -11 -10 -10 -9 -9 -9 -8 ------------- Run | Scr Mat Min Mat Min Exi Min Turns Passed 2549 | 20 265 104 124 134 1095 807 Spaces Moved 1377 | 38 406 154 152 34 420 173 Core 1365 | 38 406 154 152 34 420 161 Treads . | . . . . . . . Legs . | . . . . . . . Wheels . | . . . . . . . Hover . | . . . . . . . Flight 12 | . . . . . . 12 Fastest Speed 50 | 50 50 50 50 50 50 50 Average Speed 157 | 50 54 50 50 123 244 409 Slowest Speed 450 | 50 100 50 50 150 400 450 Overloaded Moves . | . . . . . . . Propulsion Burnouts . | . . . . . . . Robots Hopped . | . . . . . . . Cave-ins Triggered . | . . . . . . . Exploration Rate (%) 32 | 3 60 32 21 5 63 46 Regions Visited 6 Branch Regions 4 Pre-discovered Areas . | . . . . . . . Known Exits Taken 4 | . 1 . 1 1 1 . Unknown Exits Taken 2 | 1 . 1 . . . . Scrap Searched 3 | . . . . . . 3 Spaces Dug 27 | . . . . . . 27 Terrain Destroyed 214 | . 3 . . . . 211 Melee . | . . . . . . . Projectile . | . . . . . . . AOE 214 | . 3 . . . . 211 Terrain Rammed . | . . . . . . . Walls Destroyed . | . . . . . . . Machines Disabled . | . . . . . . . Actions | -11 -10 -10 -9 -9 -9 -8 --------- Run | Scr Mat Min Mat Min Exi Min Total 1694 | 38 433 180 187 127 494 235 Wait 217 | . 6 25 18 89 59 20 Move 1371 | 37 405 153 151 33 419 173 Hop . | . . . . . . . Pick Up 11 | . 2 1 . 2 3 3 Fast Attach 18 | 1 6 . 4 . 4 3 Attach 7 | . 1 . . 1 2 3 Detach 3 | . 3 . . . . . Swap . | . . . . . . . Drop 14 | . . 1 3 2 7 1 Fire 50 | . 10 . 11 . . 29 Melee 1 | . . . . . . 1 Ram 2 | . . . . . . 2 Kick . | . . . . . . . Crush . | . . . . . . . Escape Stasis . | . . . . . . . Rewire . | . . . . . . . Trap . | . . . . . . . Miscellaneous . | . . . . . . . Route ------- -11/Scrapyard -10/Materials (discovered 3 exits: *Mat / *Min x2) -10/Mines -9/Materials -9/Mines -9/Exiles (discovered 2 exits: *Min x2) -8/Mines History --------- Turn | Location | Event 7 | -11/Scrapyard | Discovered new exit (range 14) 21 | -11/Scrapyard | Entered Materials 98 | -10/Materials | Discovered new exit (range 9) 102 | -10/Materials | Identified exit to Mines 132 | -10/Materials | Discovered new exit (range 10) 200 | -10/Materials | Discovered exit to Mines (range 5) 286 | -10/Materials | Entered Mines 287 | -10/Mines | Assembled infested the area 289 | -10/Mines | Received a Mining Laser from a helpful Derelict 300 | -10/Mines | Build established: Mutant 353 | -10/Mines | Received a Rocket Launcher from a helpful Derelict 382 | -10/Mines | Discovered new exit (range 12) 390 | -10/Mines | Entered Materials 390 | -9/Materials | Evolved 2 slots: Utility x2 503 | -9/Materials | Discovered new exit (range 5) 513 | -9/Materials | Identified exit to Mines 514 | -9/Materials | Entered Mines 515 | -9/Mines | Met a Derelict testing a Signal Generator 532 | -9/Mines | Found Signal Generator 638 | -9/Mines | Deemed a non-threat by the Exiles lab entrance 640 | -9/Mines | Discovered new exit (range 5) 644 | -9/Mines | Identified exit to Exiles 648 | -9/Mines | Entered Exiles 648 | -9/Exiles | Accompanied by 1 ally 668 | -9/Exiles | Discovered new exit (range 16) 684 | -9/Exiles | Met 8R-AWN 708 | -9/Exiles | Met EX-HEX 764 | -9/Exiles | Met EX-BIN 794 | -9/Exiles | Aligned with FarCom system 796 | -9/Exiles | Given EX-Vault access code 842 | -9/Exiles | Opened EX-Vault 853 | -9/Exiles | Found Prototype Energy Cannon 853 | -9/Exiles | Identified YOLO Cannon 856 | -9/Exiles | Found Prototype Special Weapon 856 | -9/Exiles | Identified Field Lobotomy Kit 863 | -9/Exiles | Found Prototype Flight Unit 930 | -9/Exiles | Warned to stay clear of 0b10 Research branches 961 | -9/Exiles | Met EX-DEC 1695 | -9/Exiles | Discovered new exit (range 14) 1739 | -9/Exiles | Identified exit to Mines 1743 | -9/Exiles | Left Exiles lab with Flying Fortress v7 1743 | -9/Exiles | Entered Mines 1743 | -8/Mines | Accompanied by 1 ally 2467 | -8/Mines | Core integrity fell below 50% 2475 | -8/Mines | Lost 4 parts (2n2w) 2544 | -8/Mines | Core integrity fell below 20% 2550 | -8/Mines | Destroyed by S-10 Pest with Light Assault Rifle Last Messages --------------- 02473_ K-01 Serf collects debris. 02482_ Acquired 9 matter. 02485_ The unstable cave ceiling collapses. 02486_ K-01 Serf collects debris. 02506_ The unstable cave ceiling collapses. 02507_ K-01 Serf collects debris. 02530_ U-05 Engineer builds a Wall. 02533_ K-01 Serf collects debris. 02533_ C-30 ARC bursts open, deploying its payload. 02533_ S-10 Pest unfolds itself. 02534_ Flail destroyed. 02534_ U-05 Engineer builds a Wall. 02536_ K-01 Serf collects debris. 02538_ Imp. EM Shotgun destroyed. 02538_ U-05 Engineer builds a Wall. 02540_ Slammed into S-10 Pest. 02541_ K-01 Serf collects debris. 02543_ Slammed into S-10 Pest. 02548_ K-01 Serf collects debris. 02549_ Dropped Lrg. Storage Unit. Map ----- +----------------------------------------------------+ | ???????????????????????????????? | | ???????????????????????????????? | | ???????????????????????????????? | | ???????????????????????????????? | | ???????????????????????????????? | | ???????????????????????????????? | | ???????????????????????????????? | | ???????????????????????????????? | | ???????????????????????????????? | | ???????????????????????????????? | | ???????????????????????????????? | | ???????????????????????????????? | | ???????????????????????????????? | | ???????????????????????????????? | | ???????????????????????????????? | | ???????????????????????????????? | | ?????????????????????????##????? | | ????????????????????????# ????? | | ????????????????????????# #????? | | ????????????????????????# #????? | | ????????????????????????# #????? | | ????????????????????????# #????? | | ????????????????????????#t#????? | | ????????????????????????# #????? | | ?????????? ###### #????? | | ??????????# @#????? | | ???????????# #####s#####? | | ???????????????????????#&s #? | | ###????????????????????#s s ## | | # ????????????????????# "# | | # #????????????????????# # | | # #???????????????????## # | | # #???????????????????## k | | # ###????????????????## # | | # #####??????????????# | | #?####?????????## | | !### ##????????## ## | | # = ##????#### # = | | ### #???## ### # # | | ##?#### ##### # # # | | ??????# # ## # ### | | ??????## # ###### #? | | ???????# #? | | ???????## ## #### # ##? | | ????????# # ### #? | | ????????# #### #? | | ????????# #####??## #? | | ########## #???????# #? | | #???????# " #? | | ############???????# """ " #? | +----------------------------------------------------+ Best States ------------- Heat Dissipation 28 Energy Generation 10 Energy Capacity 125 Matter Stores 300 Matter Capacity 300 Sight Range 18 Terrain Scan Density 10 Armor Coverage 150 Propulsion Shielding 33 Evasion (%) 50 Targeting Accuracy 5 Item Schematics ----------------- Propulsion Shielding | -10/Materials | Hacked Utility Shielding | -10/Materials | Hacked Weight Redist. System | -9/Materials | Hacked Robot Schematics ------------------ None Fabricated ------------ Nothing Alien Tech Used ----------------- None Achievements -------------- None Challenges ------------ None Game ------ Seed AssemblyLightArmor Manual? 0 Play Time 00:25:34 Cumulative 111.8 hours Start 2020.10.06 @ 15:56:07 End 2020.10.06 @ 16:19:50 Sessions 1 Manual Loads 0 Difficulty Rogue Special Mode None Game No. 168 Rogue 144 Adventurer 22 Explorer 2 Win Type - Total 1 Types 1/0/0/0/0/0/0/0/0 Lore% 49 Gallery% 53 Achievement% 43 Wizard Run 0 Options --------- ASCII 0 Keyboard 0 Movement Numpad Keybinds 0 Fullscreen 1 Font 14/SmallcapsGlow Map View 84x54 Tactical HUD 1 Map Filters NONE Filters NONE Steam 1 RUN: f4954df0-3de5-4744-9c01-5ef58871ea2d